Cogmind - Beta 17 *** ADVENTURER MODE // 2026.07.14 @ 14:54:29 Player: Vidali Result: Self-destructed Performance ------------- Evolutions (0) 0 Regions Visited (3) 600 Robots Destroyed (43) 215 Value Destroyed (1121) 1121 Prototype IDs (16) 320 Alien Tech Used (0) 0 Bonus (8118) 8118 TOTAL SCORE: 10374 Bonus ------- Follower Combat Kills 39 Prayed to X0-1V1 5000 Major X0-1V1 Interference 3100 Friendly Fire -21 Cogmind --------- Core Integrity 117/150 Matter 894/1000 Energy 970/970 System Corruption 21% Temperature Cool (0) Movement Walking (140) Location -9/Recycling Parts ------- > --- POWER (2) -------- Makeshift Power Source (fused) > --- PROPULSION (2) --- Makeshift Leg Makeshift Leg > --- UTILITY (2) ------ Small Storage Unit X0-1V1's Piety Tracker > --- WEAPON (5) ------- Shotgun (fused) Shotgun (fused) Grenade Launcher (fused) Flail (fused) > --- INVENTORY (8) ---- Meta Core Terrain Scanner Self-contained Transmogrifier V3-11A's Pendant Peak State ------------ > --- POWER ------------ Makeshift Power Source > --- PROPULSION ------- Makeshift Leg Makeshift Leg > --- UTILITY ---------- Small Storage Unit X0-1V1's Piety Tracker > --- WEAPON ----------- Shotgun Shotgun Grenade Launcher Flail > --- INVENTORY -------- Meta Core Terrain Scanner Self-contained Transmogrifier V3-11A's Pendant [Rating: 35] Favorites ----------- Power Ion Engine Engine Ion Engine Propulsion Aluminum Leg Leg Aluminum Leg Wheel Wheel Utility Small Storage Unit Device X0-1V1's Piety Tracker Storage Small Storage Unit Weapon Shotgun Energy Gun Medium Laser Ballistic Gun Shotgun Launcher Grenade Launcher Impact Weapon Flail Build | -11 -10 -10 -9 ------- Run | Yrd Mat Sub Rec Slots Evolved . | . . . . Power . | . . . . Propulsion . | . . . . Utility . | . . . . Weapon . | . . . . Parts Attached 28 | 5 5 18 . Power 4 | 1 . 3 . Engine 4 | 1 . 3 . Core . | . . . . Reactor . | . . . . Propulsion 10 | 2 2 6 . Treads . | . . . . Leg 8 | 2 2 4 . Wheel 2 | . . 2 . Hover . | . . . . Flight . | . . . . Utility 6 | 1 2 3 . Device 5 | . 2 3 . Storage 1 | 1 . . . Processor . | . . . . Hackware . | . . . . Protection . | . . . . Artifact . | . . . . Weapon 8 | 1 1 6 . Energy Gun 1 | 1 . . . Energy Cannon . | . . . . Ballistic Gun 6 | . 1 5 . Ballistic Cannon . | . . . . Launcher 1 | . . 1 . Special Weapon . | . . . . Impact Weapon . | . . . . Slashing Weapon . | . . . . Piercing Weapon . | . . . . Special Melee Weapon . | . . . . Unidentified Prototypes 1 | . 1 . . Parts Lost 10 | . . 10 . Power 3 | . . 3 . Propulsion . | . . . . Utility 3 | . . 3 . Weapon 4 | . . 4 . Highest Loss Streak 3 | . . 3 . To Critical Strikes . | . . . . Average Backups 6 | 2 5 6 4 Power . | . 1 . . Propulsion 1 | . 2 1 . Utility 1 | . . 2 2 Weapon 1 | 1 2 1 . Tool/Special . | . . . . Unused Backups 9 | . 1 4 4 Power . | . . . . Propulsion 3 | . . 3 . Utility 2 | . . . 2 Weapon 2 | . 1 1 . Tool/Special 2 | . . . 2 Average Slot Usage (%) 91 | . 98 90 81 Engine 13 | . 14 13 9 Leg 19 | . 28 17 18 Wheel 2 | . . 3 . Device 13 | . 13 14 9 Storage 13 | . 14 12 9 Energy Gun 3 | . 14 . . Ballistic Gun 20 | . 12 22 18 Launcher 1 | . . 1 9 Impact Weapon 2 | . . 2 9 Peak Build Rating 35 | 5 19 35 35 Average Rating 18 | 3 7 21 35 On Entrance 14 | . 5 19 35 Avg Prop Armor Cover (%) . | . . . . Naked Turns . | . . . . Heaviest Build 30 | 12 14 30 21 Greatest Support 40 | 20 20 40 40 Greatest Overweight (x) 2 | . . 2 . Average Overweight (x) . | . . . . Largest Inventory Capacity 8 | 8 8 8 8 Average Capacity 7 | 6 8 8 8 Most Carried 8 | 5 8 8 4 Average Carried 6 | 3 5 6 4 Final Capacity 8 | 8 8 8 8 Final Carried 7 | 4 7 4 4 Class Distribution -------------------- 85% | Mutant 8% | Tank 5% | Gunner Dominant Class ---------------- Mutant | -10/Materials Mutant | -10/Subcaves Gunner | -9/Recycling Resources | -11 -10 -10 -9 ----------- Run | Yrd Mat Sub Rec Matter Collected 1233 | 228 98 907 . Remotely . | . . . . Salvage Created 1202 | . 396 806 . Parts 90 | . 27 63 . Haulers Intercepted . | . . . . Recyclers Shooed . | . . . . Parts Field Recycled . | . . . . Retrieved Matter . | . . . . Parts Self-Destructed 47 | . . 47 . Prevented 2 | . . 2 . Parts Restored . | . . . . Kills | -11 -10 -10 -9 ------- Run | Yrd Mat Sub Rec Combat Hostiles Destroyed 40 | . 12 28 . Melee 2 | . . 2 . Guns 35 | . 12 23 . AOE 3 | . . 3 . Classes Destroyed 7 | . 3 4 . Turret 2 | . . 2 . Watcher 1 | . 1 . . Swarmer 18 | . 5 13 . Grunt 10 | . 7 3 . Sentry 1 | . . 1 . Subdweller 10 | . . 10 . Mutant 1 | . . 1 . Best Kill Streak 9 | . 9 6 . Combat Bots Only 8 | . 8 6 . Max Kills in Single Turn 3 | . 1 3 . Gunslinging 1 | . . 1 . Exploded 2 | . . 2 . Melee 1 | . . 1 . Uniques/NPCs Destroyed . | . . . . Combat | -11 -10 -10 -9 -------- Run | Yrd Mat Sub Rec Hostile Shots Fired 249 | . 53 196 . Missed 74 | . 17 57 . Hits 175 | . 36 139 . Projectile 175 | . 36 139 . AOE 2 | . . 2 . Damage Taken 1531 | . 263 1268 . Core 276 | . 64 212 . Absorbed by Shields 147 | . . 147 . Ignored by Resistances 618 | . 85 533 . Core Remaining (%) 100 | 100 . . . Volleys Fired 132 | . 36 96 . Largest 3 | . 2 3 . Hottest 91 | . 70 91 . Shots Fired 261 | . 70 191 . Gun 258 | . 70 188 . Cannon . | . . . . Launcher 3 | . . 3 . Special . | . . . . Kinetic 216 | . 36 180 . Thermal 40 | . 34 6 . Explosive 3 | . . 3 . Electromagnetic 2 | . . 2 . Robot Hit Streak 28 | . 11 28 . Robot Miss Streak 8 | . 3 8 . Penetration Max . | . . . . Secondary Targets 6 | . 2 4 . Max Gunslinging Chain 1 | . 1 1 . Shots Hit Robots 173 | . 51 122 . Core Hits 76 | . 23 53 . Critical Kills 1 | . . 1 . Critical Parts Destroyed . | . . . . Critical Strikes 5 | . 2 3 . Burn 3 | . 2 1 . Destroy 2 | . . 2 . Melee Attacks 18 | . . 18 . Impact 18 | . . 18 . Slashing . | . . . . Piercing . | . . . . Sneak Attacks . | . . . . Combat Hostiles . | . . . . Follow-up Attacks . | . . . . Damage Inflicted 3173 | . 557 2616 . Guns 2477 | . 557 1920 . Cannons . | . . . . Explosions 143 | . . 143 . Melee 553 | . . 553 . Ramming . | . . . . Kinetic 2068 | . 225 1843 . Thermal 393 | . 332 61 . Explosive 143 | . . 143 . Electromagnetic 16 | . . 16 . Impact 553 | . . 553 . Slashing . | . . . . Piercing . | . . . . Highest Corruption 21 | . . 21 21 Average Corruption 13 | . . 11 21 Corruption Purged . | . . . . Corruption Blocked . | . . . . Effects 12 | . . 9 3 Message Errors 3 | . . 3 . Matter Fused 1 | . . 1 . Heat Flow Errors 2 | . . 2 . Energy Discharges 3 | . . 2 1 Parts Fused 1 | . . 1 . Data Loss (minor) 2 | . . . 2 Overload Shots . | . . . . Overflow Damage 54 | . . 54 . Projectiles . | . . . . Explosions . | . . . . Melee 54 | . . 54 . Knockbacks 2 | . . 2 . Impact 2 | . . 2 . Kinetic . | . . . . Secondary . | . . . . Self-Inflicted Damage 19 | . . 19 . Shots 1 | . . 1 . Rammed . | . . . . Targets Rammed . | . . . . Kicked . | . . . . Crushed . | . . . . Highest Temperature 138 | . 120 138 . Average Temperature 47 | . 47 48 . Received Heat Transfer 508 | . 108 400 . Siege Activations . | . . . . Martial Activations . | . . . . Shielding Activations . | . . . . Robots Disrupted . | . . . . Combat Hostiles . | . . . . Robots Corrupted . | . . . . Combat Hostiles . | . . . . Parts Fried 1 | . . 1 . Impact Corruptions 3 | . . 3 . Robots Melted . | . . . . Combat Hostiles . | . . . . Parts Melted 2 | . 1 1 . Heat Transferred 1369 | . 1110 259 . Parts Sabotaged . | . . . . Parts Stolen . | . . . . Parts Stripped . | . . . . Power Chain Reactions . | . . . . Alert | -11 -10 -10 -9 ------- Run | Yrd Mat Sub Rec Maximum Alert Level . | . . . . Low Security (%) 100 | 100 100 . 100 Level 1 . | . . . . Level 2 . | . . . . Level 3 . | . . . . Level 4 . | . . . . Level 5 . | . . . . High Security . | . . . . Max Security . | . . . . Peak Influence 175 | . 175 . 16 Initial 16 | . . . 16 Average 92 | . 111 . 5 Influence Increases 933 | . 418 515 . Destroy 0b10 Robot/C 680 | . 240 440 . Destroy 0b10 Robot/NC 5 | . 5 . . Destroy Leader 52 | . 42 10 . Allied During Kill 5 | . . 5 . Successful Hack 14 | . 14 . . Lose Combat Pursuer 75 | . 15 60 . Miscellaneous 102 | . 102 . . Influence Decreases 933 | . 274 619 40 Entered New Map 104 | . . 80 24 Time Decay 769 | . 274 479 16 Lost Part 60 | . . 60 . Squads Dispatched 1 | . 1 . . Investigation 1 | . 1 . . Extermination . | . . . . Reinforcement . | . . . . Assault . | . . . . Garrison . | . . . . Intercept . | . . . . Searches Triggered . | . . . . Construction Impeded . | . . . . Haulers Reinforced . | . . . . Active Scanning Responses . | . . . . Cargo Convoy Interrupts . | . . . . Stealth | -11 -10 -10 -9 --------- Run | Yrd Mat Sub Rec Distress Signals 2 | . 2 . . Communications Jammed . | . . . . Distress Signals . | . . . . Times Spotted 58 | . 15 43 . Peak Tracking Total 6 | . 6 5 . Tactical Retreats 4 | . 1 3 . Traps | -11 -10 -10 -9 ------- Run | Yrd Mat Sub Rec Traps Triggered 2 | . 1 1 . Indirectly . | . . . . Trap Hack Attempts . | . . . . Triggered . | . . . . Disarmed . | . . . . Reprogrammed . | . . . . Reused . | . . . . Traps Extracted . | . . . . Installed . | . . . . Triggered . | . . . . Machines | -11 -10 -10 -9 ---------- Run | Yrd Mat Sub Rec Machines Disabled 1 | . . 1 . Max in Single Turn 1 | . . 1 . Machines Repaired . | . . . . Machines Dismantled . | . . . . Machines Sabotaged . | . . . . Overloaded Fab Kills . | . . . . Hacking | -11 -10 -10 -9 --------- Run | Yrd Mat Sub Rec Machines Accessed 6 | . 5 1 . Terminals 5 | . 5 . . Fabricators . | . . . . Repair Stations . | . . . . Recycling Units . | . . . . Scanalyzers . | . . . . Garrison Access . | . . . . Total Hacks 15 | . 14 1 . Successful 9 | . 8 1 . Failed 6 | . 6 . . Catastrophic . | . . . . Database Lockouts . | . . . . Manual 16 | . 16 . . Terminals 14 | . 14 . . Fabricators . | . . . . Repair Stations . | . . . . Recycling Units . | . . . . Scanalyzers . | . . . . Garrison Access . | . . . . Terminal Hacks 6 | . 5 1 . Robot Analysis 5 | . 5 . . Proto ID Catalog 1 | . . 1 . Fabricator Hacks . | . . . . Repair Station Hacks . | . . . . Recycling Unit Hacks . | . . . . Scanalyzer . | . . . . Garrison Access Hacks . | . . . . Unauthorized Hacks 3 | . 3 . . Terminals 3 | . 3 . . Botnet 3 | . 3 . . Fabricators . | . . . . Repair Stations . | . . . . Recycling Units . | . . . . Scanalyzers . | . . . . Garrison Access . | . . . . Data Cores Recovered . | . . . . Used . | . . . . Hacking Detections 3 | . 3 . . Full Trace Events . | . . . . Feedback Events . | . . . . Feedback Blocked . | . . . . Robot Schematics Acquired . | . . . . Robots Built . | . . . . Authchips . | . . . . Time . | . . . . Total Robot Build Rating . | . . . . Part Schematics Acquired . | . . . . Parts Built . | . . . . Authchips . | . . . . Time . | . . . . Total Part Build Rating . | . . . . Part Studies Acquired . | . . . . Parts Repaired . | . . . . Time . | . . . . Parts Recycled . | . . . . Recycled Matter . | . . . . Retrieved Matter . | . . . . Retrieved Components . | . . . . Parts Scanalyzed . | . . . . Part Schematics Acquired . | . . . . Parts Damaged . | . . . . Bothacking | -11 -10 -10 -9 ------------ Run | Yrd Mat Sub Rec Used RIF Installer . | . . . . Robots Hacked . | . . . . Non-combat . | . . . . Combat . | . . . . Robot Hacks Applied . | . . . . Relay Couplers Released . | . . . . Fabnet Peak Effective % . | . . . . Robots Rewired . | . . . . Allies Hacked . | . . . . Hacks Repelled . | . . . . Allies | -11 -10 -10 -9 -------- Run | Yrd Mat Sub Rec Total Allies 4 | . . 4 . Largest Group 4 | . . 4 . Highest-Rated Group 32 | . . 32 . Highest-Rated Ally 8 | . . 8 . Total Orders . | . . . . Ally Attacks 11 | . . 11 . Total Damage 75 | . . 75 . Kills 3 | . . 3 . Allies Corrupted . | . . . . Allies Melted . | . . . . X0-1V1 Amusement Gains 18 | . 8 10 . Good Acts 38 | . . 38 . Bad Acts 45 | . 1 44 . Intel | -11 -10 -10 -9 ------- Run | Yrd Mat Sub Rec Active Infowar (turns) 547 | . 547 . . Terrain 547 | . 547 . . Robot Analysis Total 5 | . 5 . . Derelict Logs Recovered 1 | . . 1 . Drone Launches . | . . . . Drone Recoveries . | . . . . Exploration | -11 -10 -10 -9 ------------- Run | Yrd Mat Sub Rec Turns Passed 2685 | 56 592 1965 72 Spaces Moved 1743 | 49 382 1261 51 Core 23 | 23 . . . Treads . | . . . . Legs 1334 | 26 382 875 51 Wheels 386 | . . 386 . Hover . | . . . . Flight . | . . . . Fastest Speed 50 | 50 120 95 140 Average Speed 122 | 87 120 124 140 Slowest Speed 190 | 120 120 190 140 Overloaded Moves . | . . . . Propulsion Burnouts . | . . . . Robots Hopped . | . . . . Potential Cave-ins 3 | . . 3 . Cave-ins Triggered . | . . . . Exploration Rate (%) 41 | 4 61 88 14 Regions Visited 3 Branch Regions 2 Pre-discovered Areas 1 | . . 1 . Known Exits Taken . | . . . . Unknown Exits Taken 3 | 1 1 1 . Scrap Searched 2 | . . 2 . Spaces Dug . | . . . . Terrain Destroyed 20 | . . 20 . Melee . | . . . . Projectile . | . . . . AOE 20 | . . 20 . Terrain Rammed . | . . . . Walls Destroyed . | . . . . Machines Disabled . | . . . . Actions | -11 -10 -10 -9 --------- Run | Yrd Mat Sub Rec Total 2027 | 62 454 1460 51 Wait 38 | . 19 19 . Move 1740 | 48 381 1260 51 Hop . | . . . . Pick Up 38 | 9 9 20 . Fast Attach 1 | . . 1 . Attach 22 | 5 3 14 . Detach 2 | . . 2 . Swap 5 | . 2 3 . Drop 18 | . 4 14 . Fire 132 | . 36 96 . Melee 18 | . . 18 . Ram . | . . . . Kick . | . . . . Crush . | . . . . Escape Stasis 9 | . . 9 . Rewire 4 | . . 4 . Trap . | . . . . Miscellaneous . | . . . . Route ------- -11/Scrapyard -10/Materials (discovered 4 exits: [*Mat x2] / [*Min] / *Sub) -10/Subcaves (discovered 2 exits: [*Mat] / *Rec) -9/Recycling History --------- Turn | Location | Event 3 | -11/Scrapyard | Discovered new exit (range 15) 57 | -11/Scrapyard | Entered Materials 183 | -10/Materials | Discovered new exit (range 12) 225 | -10/Materials | Destroyed 8 combat bots 304 | -10/Materials | Build established: Mutant 377 | -10/Materials | Discovered new exit (range 9) 556 | -10/Materials | Discovered new exit (range 15) 574 | -10/Materials | Prayed at D.C.S.S. Altar Unit 578 | -10/Materials | X0-1V1 added 0b10 threat records associated with you (minor) 594 | -10/Materials | Discovered new exit (range 16) 649 | -10/Materials | Entered Subcaves 650 | -10/Subcaves | Approached by a straggling Scientist 757 | -10/Subcaves | Shifting Twisted Machinery released Battle Rifle 759 | -10/Subcaves | Shifting Twisted Machinery released Mak. Shrapnel Gun 818 | -10/Subcaves | TH resistance permanently improved by X0-1V1 (+10%; -100 max core) 954 | -10/Subcaves | Ambushed by Subdwellers from Twisted Machinery 1089 | -10/Subcaves | A swath of the cavern ceiling suddenly collapsed 1098 | -10/Subcaves | Shifting Twisted Machinery released Sub. Power Source 1195 | -10/Subcaves | Learned Materials emergency access door positions 1196 | -10/Subcaves | Shifting Twisted Machinery released Shrapnel Trap 1254 | -10/Subcaves | Discovered new exit (range 15) 1281 | -10/Subcaves | Shifting Twisted Machinery released Shrapnel Trap 1316 | -10/Subcaves | Discovered new exit (range 15) 1353 | -10/Subcaves | Visited triangular shrine 1362 | -10/Subcaves | Found Prototype Device 1480 | -10/Subcaves | Shifting Twisted Machinery released Piercing Trap 1534 | -10/Subcaves | Discovered new exit (range 14) 1567 | -10/Subcaves | X0-1V1 activates XOMVISION 1594 | -10/Subcaves | X0-1V1 tapped a No Entrance sign 1608 | -10/Subcaves | X0-1V1 sent hostile G-34 Mercenary (x3) 1689 | -10/Subcaves | X0-1V1 mutated your Propulsion slot to Weapon slot 1724 | -10/Subcaves | Core integrity restored by X0-1V1 (+28) 1761 | -10/Subcaves | Disturbed a concealed Subdweller 1762 | -10/Subcaves | Ambushed by Subdweller buried in earth 1796 | -10/Subcaves | Lost 3 parts (1p2w) 1883 | -10/Subcaves | Core integrity fell below 50% 1898 | -10/Subcaves | X0-1V1 whisked you away to safety 2060 | -10/Subcaves | X0-1V1 activates XOMVISION 2068 | -10/Subcaves | X0-1V1 mutated your Weapon slot to Power slot 2070 | -10/Subcaves | Core integrity restored by X0-1V1 (+25) 2155 | -10/Subcaves | Core integrity restored by X0-1V1 (+40) 2159 | -10/Subcaves | X0-1V1 sent you into danger 2164 | -10/Subcaves | Learned location of Zion (-7) 2164 | -10/Subcaves | Met a Zionite searching for "candidates" 2169 | -10/Subcaves | X0-1V1 mutated your Weapon slot to Utility slot 2191 | -10/Subcaves | X0-1V1 sent hostile S-10 Pest (x4) 2210 | -10/Subcaves | Weapon slot count temporarily expanded by X0-1V1 (+4) 2213 | -10/Subcaves | X0-1V1 sent allied G-34 Mercenary (x4) 2231 | -10/Subcaves | Core integrity restored by X0-1V1 (+39) 2267 | -10/Subcaves | System corruption reached 10% 2272 | -10/Subcaves | X0-1V1 activates XOMVISION 2280 | -10/Subcaves | Visited 4L-MR0's lab 2290 | -10/Subcaves | Found Prototype Device 2312 | -10/Subcaves | Found Meta Core 2357 | -10/Subcaves | X0-1V1 rewrote G-34 Mercenary IFF filter 2465 | -10/Subcaves | X0-1V1 sent you into danger 2477 | -10/Subcaves | X0-1V1 sent hostile S-10 Pest (x5) 2519 | -10/Subcaves | X0-1V1 sent you into danger 2521 | -10/Subcaves | X0-1V1 upgraded hostiles (x1) 2533 | -10/Subcaves | Core integrity restored by X0-1V1 (+33) 2564 | -10/Subcaves | X0-1V1 mutated your Utility slot to Propulsion slot 2614 | -10/Subcaves | Entered Recycling 2686 | -9/Recycling | Self-destructed Last Messages --------------- (-215). 02539_ Autogun fries itself beyond repair. 02553_ System corrupted: Heat flow error (+173). 02562_ Melee accuracy returns to normal. 02564_ X0-1V1: "Evolution hits right when you least expect it." (Utility slot mutated into Propulsion slot) 02568_ WLSHJE3 D5BAJ CBO5AYRU 02570_ Sensor data returns to normal. 02572_ Discarded Wheel. 02590_ System corrupted: Heat flow error (+136). 02606_ UE6B0Z%D36LAKD5EABQ69<%PVQSZQU|/ 02686_ Connecting with Terminal... 02686_ Current location identified: Recycling Map ----- +----------------------------------------------------+ | ??????????????????????????????? #???????? | | ????????????????????????????????? #???????? | | ?????????????????#######??????????? ?????????? | | ?????????????????# ##############+######?????? | | ?????????????????# #?????? | | ?????????????????# #?????? | | ?????????????????# #?????? | | ?????????????????# #######!!!####+######?????? | | ?????????????????## ##?????#!!!# #??????? | | ??????????????????# #??????##### """"" #??????? | | ??????????????????# ##########?# """"" #??????? | | ??????????????##### # #?# """"" #??????? | | ????????????#?#"""# # #?# """"" #??????? | | ????######### #"Y"# + #?# """"" #??????? | | ???? # #?# """"" #??????? | | ?????????# + #?# ?"""? #??????? | | ?????????# # #????????? #??????? | | ?????????# # #?????????????????? | | ?????????# ######### ## #????????????????? | | ???????????????????# ## ##????????????????? | | ???????????????????# ######### #?????????????????? | | ???????????????????# #?????????#?????????????????? | | ???????????????????# #???????????????????????????? | | ??????????????????## ##?#####????????????????????? | | ??????????????????# ### ########?????????????? | | ??????????????????# @T ???????? | | ??????????????????# ### ## #####?????????????? | | ??????????????????## ##?##+##????????????????????? | | ???????????????????# #???????????????????????????? | | ??????????????????? #???????????????????????????? | | ??????????????????####???????????????????????????? | | ?????????????????????????????????????????????????? | | ?????????????????????????????????????????????????? | | ?????????????????????????????????????????????????? | | ?????????????????????????????????????????????????? | | ?????????????????????????????????????????????????? | | ?????????????????????????????????????????????????? | | ?????????????????????????????????????????????????? | | ?????????????????????????????????????????????????? | | ?????????????????????????????????????????????????? | | ?????????????????????????????????????????????????? | | ?????????????????????????????????????????????????? | | ?????????????????????????????????????????????????? | | ?????????????????????????????????????????????????? | | ?????????????????????????????????????????????????? | | ?????????????????????????????????????????????????? | | ?????????????????????????????????????????????????? | | ?????????????????????????????????????????????????? | | ?????????????????????????????????????????????????? | | ?????????????????????????????????????????????????? | +----------------------------------------------------+ Best States ------------- Heat Dissipation 125 Energy Generation 15 Energy Capacity 1380 Matter Stores 1000 Matter Capacity 1000 Sight Range 21 Terrain Scan Range 14 Terrain Scan Density 10 Resistance: KI 20 Resistance: TH 30 Resistance: EX 20 Resistance: EM 20 Resistance: I 20 Resistance: S 20 Resistance: P 20 Evasion (%) 55 Offensive Hacking 10 Item Schematics ----------------- None Robot Schematics ------------------ None Fabricated ------------ Nothing Repaired ---------- Nothing Studied --------- None Alien Tech Used ----------------- None Achievements -------------- Chaos Is Inevitable Do Not Disturb Mistaken Identity There's More Where That Came From Challenges ------------ None Game ------ Seed ProtonExperimentalCleaver Manual? 0 Play Time 00:43:08 Cumulative 270.0 hours Start 2026.07.14 @ 13:17:17 End 2026.07.14 @ 14:54:29 Sessions 3 Manual Loads 0 Difficulty Adventurer Special Mode None Game No. 161 Rogue 94 Adventurer 67 Explorer 0 Win Type - Total 13 Types 10/0/0/3/0/0/0/0/0/0 Lore% 68 Gallery% 63 Achievement% 37 Wizard Run 0 Options --------- Layout 2 ASCII 0 Keyboard 0 Movement Mouse Keybinds 0 Fullscreen 1 Font 32/SmallcapsGlow Map View 50x44 Zoom Use 0% Tactical HUD 1 Map Filters NONE Filters NONE Steam 1 RUN: e8bafa8a-b147-4799-bf2a-dafeeed03f07